bitfinex/quotes_BTCUSD_20250602
["timestamp","ask_amount","ask_price","bid_price","bid_amount"]
[1748841635134,1.11438495,104790.0,104780.0,0.04380427]
[1748841635357,1.11438495,104790.0,104780.0,0.0348819]
[1748841635546,1.11438495,104790.0,104780.0,0.04380381]
[1748841635905,1.11438495,104790.0,104780.0,0.04380452]
[1748841636246,1.11438495,104790.0,104780.0,0.04380464]
[1748841636450,1.11438495,104790.0,104780.0,0.04380465]
[1748841636883,1.02510495,104790.0,104780.0,0.04380465]
[1748841637063,1.00577305,104790.0,104780.0,0.04380465]
[1748841637263,1.34577305,104790.0,104780.0,0.34007887]
[1748841637460,1.42551061,104790.0,104780.0,0.34007928]
[1748841637688,1.42551061,104790.0,104780.0,0.34313276]
[1748841638095,1.42551061,104790.0,104780.0,0.34313317]
[1748841638295,0.79583,104790.0,104780.0,0.35267683]
[1748841638497,0.79583,104790.0,104780.0,0.37176298]
[1748841638498,0.42175974,104790.0,104780.0,0.37176298]
[1748841638716,0.52058263,104790.0,104780.0,0.36284011]
[1748841638865,0.52058263,104790.0,104780.0,0.37176269]
[1748841639062,0.52058263,104790.0,104780.0,0.37176265]
[1748841639444,0.70189846,104790.0,104780.0,0.35267586]
[1748841639624,0.70189846,104790.0,104780.0,0.37176304]
[1748841639971,0.69235612,104790.0,104780.0,0.35329694]
[1748841640172,0.69235612,104790.0,104780.0,0.36221963]
[1748841640678,0.69235612,104790.0,104780.0,0.36221949]
[1748841641077,0.69235612,104790.0,104780.0,0.35329694]
[1748841641282,0.69235612,104790.0,104780.0,0.36221949]
[1748841641488,0.69235612,104790.0,104780.0,0.35329694]
[1748841641925,0.39313225,104790.0,104780.0,0.36284047]
[1748841642137,0.39313225,104790.0,104780.0,0.69650509]
[1748841642138,0.38359,104790.0,104780.0,0.69650509]
[1748841642352,0.41221676,104790.0,104780.0,0.69650509]
[1748841642563,0.41221676,104790.0,104780.0,0.70542693]
[1748841642798,0.38359,104790.0,104780.0,0.69650509]
[1748841643019,0.38259,104790.0,104780.0,0.69650402]
[1748841643226,0.4006746,104790.0,104780.0,0.69650402]
[1748841643438,0.4006746,104790.0,104780.0,0.38496883]
[1748841643663,0.4006746,104790.0,104780.0,0.37604687]
[1748841643857,0.4006746,104790.0,104780.0,0.38496886]
[1748841644072,0.41021713,104790.0,104780.0,0.37604687]
[1748841644265,0.41021713,104790.0,104780.0,0.38496887]
[1748841645000,0.41021713,104790.0,104780.0,0.37604687]
[1748841645195,0.41021713,104790.0,104780.0,0.38496674]
[1748841646064,0.41021713,104790.0,104780.0,0.37604687]
[1748841646276,0.41021713,104790.0,104780.0,0.38496488]
[1748841646679,0.41021713,104790.0,104780.0,0.37604687]
[1748841646885,0.41021713,104790.0,104780.0,0.38496488]
[1748841647175,0.41021713,104790.0,104780.0,0.38496301]
[1748841647885,0.41975984,104790.0,104780.0,0.38496273]
[1748841648484,0.41975984,104790.0,104780.0,0.38496123]
[1748841648688,0.60107594,104790.0,104780.0,0.34678748]
[1748841648899,0.60107594,104790.0,104780.0,0.14270588]
[1748841649111,0.59153341,104790.0,104780.0,0.34312541]
[1748841649317,0.59153341,104790.0,104780.0,0.35266873]
[1748841649748,0.59153341,104790.0,104780.0,0.34312511]
[1748841650171,0.59153341,104790.0,104780.0,0.36221226]
[1748841650813,0.59153341,104790.0,104780.0,0.36221209]
[1748841651267,0.59153341,104790.0,104780.0,0.35329641]
[1748841651484,0.59153341,104790.0,104780.0,0.36221161]
[1748841651698,0.59153341,104790.0,104780.0,0.35329655]
[1748841652489,0.59153341,104790.0,104780.0,0.34375302]
[1748841652889,0.59153341,104790.0,104780.0,0.35266771]
[1748841653119,0.59153341,104790.0,104780.0,0.3526673]
[1748841653695,0.59153341,104790.0,104780.0,0.3342094]
[1748841654049,0.59153341,104790.0,104780.0,0.35266718]
[1748841654544,0.59153341,104790.0,104780.0,0.35266727]
[1748841654673,0.59153341,104790.0,104780.0,0.3342094]
[1748841654888,0.59153341,104790.0,104780.0,0.34312371]
[1748841655099,0.5819907,104790.0,104780.0,0.34312356]
[1748841655296,0.5819907,104790.0,104780.0,0.3342094]
[1748841655743,0.5819907,104790.0,104780.0,0.34312356]
[1748841655990,0.5819907,104790.0,104780.0,0.34312377]
[1748841656189,0.5819907,104790.0,104780.0,0.35266739]
[1748841656394,0.5819907,104790.0,104780.0,0.35266741]
[1748841656630,0.5819907,104790.0,104780.0,0.36221094]
[1748841657019,0.5819907,104790.0,104780.0,0.35329655]
[1748841657437,0.5819907,104790.0,104780.0,0.37175429]
[1748841657649,0.5819907,104790.0,104780.0,0.35329655]
[1748841657866,0.5819907,104790.0,104780.0,0.36221094]
[1748841658457,0.5819907,104790.0,104780.0,0.3622116]
[1748841658668,0.5819907,104790.0,104780.0,0.3622122]
[1748841658866,0.5819907,104790.0,104780.0,0.35329655]
[1748841659667,0.40067533,104790.0,104780.0,0.37238315]
[1748841660249,0.40067533,104790.0,104780.0,0.37238316]
[1748841660534,0.40067533,104790.0,104780.0,0.38129966]
[1748841661173,0.40067533,104790.0,104780.0,0.39021616]
[1748841661379,0.40067533,104790.0,104780.0,0.38129966]
[1748841662210,0.40067533,104790.0,104780.0,0.38496289]
[1748841662417,0.41021822,104790.0,104780.0,0.38496289]
[1748841662848,0.41021822,104790.0,104780.0,0.39388058]
[1748841663114,0.41021822,104790.0,104780.0,0.38496435]
[1748841663535,0.41021822,104790.0,104780.0,0.39388374]
[1748841663945,0.60107612,104790.0,104780.0,0.39388393]
[1748841664156,0.41021822,104790.0,104780.0,0.39388301]
[1748841664380,0.41021822,104790.0,104780.0,0.39388626]
[1748841664590,0.41021822,104790.0,104780.0,0.38496362]
[1748841664791,0.41021822,104790.0,104780.0,0.39388625]
[1748841665223,0.40067533,104790.0,104780.0,0.39388625]
[1748841665605,0.40067533,104790.0,104780.0,0.39389013]
[1748841665919,0.40067533,104790.0,104780.0,0.38496362]
[1748841666048,0.41021822,104790.0,104780.0,0.38496362]
[1748841666482,0.41021822,104790.0,104780.0,0.37542046]
[1748841666715,0.41021822,104790.0,104780.0,0.38434933]
[1748841666963,0.59153359,104790.0,104780.0,0.11357077]
[1748841667176,0.59153359,104790.0,104780.0,0.02298602]
[1748841667348,0.59153359,104790.0,104780.0,0.02298625]
[1748841667738,0.59153359,104790.0,104780.0,0.01405192]
[1748841667984,0.59153359,104790.0,104780.0,0.02298632]
[1748841668256,0.59153359,104790.0,104780.0,0.02298959]
[1748841668496,0.59153359,104790.0,104780.0,0.01405192]
[1748841668970,0.59153359,104790.0,104780.0,0.02299039]
[1748841669193,0.59153359,104790.0,104780.0,0.01405192]
[1748841669655,0.59153359,104790.0,104780.0,0.02299039]
[1748841669873,0.59153359,104790.0,104780.0,0.01405192]
[1748841671468,0.59153359,104790.0,104780.0,0.02299185]
[1748841671669,0.59153359,104790.0,104780.0,0.01405194]
[1748841672740,0.60663359,104790.0,104780.0,0.01405194]
[1748841673386,0.60663359,104790.0,104780.0,0.02299202]
[1748841673516,0.60663359,104790.0,104780.0,0.01405194]
[1748841673738,0.60663359,104790.0,104780.0,0.02299203]
[1748841673977,0.60663359,104790.0,104780.0,0.02299204]
[1748841674384,0.60663359,104790.0,104780.0,0.01405194]
[1748841675294,0.60663359,104790.0,104780.0,0.02299248]
[1748841675699,0.60663359,104790.0,104780.0,0.02298662]
[1748841675917,0.60663359,104790.0,104780.0,0.02298684]
[1748841676119,0.60663359,104790.0,104780.0,0.02298701]
[1748841676332,0.60663359,104790.0,104780.0,0.02298705]
[1748841677163,0.60663359,104790.0,104780.0,0.02298359]
[1748841677806,0.59153359,104790.0,104780.0,0.02298359]
[1748841678013,0.88333359,104790.0,104780.0,0.01405216]
[1748841678223,0.88333359,104790.0,104780.0,0.01993026]
[1748841678490,0.88333359,104790.0,104780.0,0.02298402]
[1748841679411,0.88333359,104790.0,104780.0,0.02298235]
[1748841680235,0.88333359,104790.0,104780.0,0.0199279]
[1748841680867,0.88333359,104790.0,104780.0,0.0229816]
[1748841681721,0.88333359,104790.0,104780.0,0.0140521]
[1748841681938,0.88333359,104790.0,104780.0,0.0199279]
[1748841682154,0.88333359,104790.0,104780.0,0.0109984]
[1748841683514,0.88333359,104790.0,104780.0,0.01992788]
[1748841683714,0.88333359,104790.0,104780.0,0.0109984]
[1748841684266,0.88333359,104790.0,104780.0,0.01992763]
[1748841684480,0.88333359,104790.0,104780.0,0.02298133]
[1748841684685,0.88333359,104790.0,104780.0,0.02298126]
[1748841685140,0.88333359,104790.0,104780.0,0.0140521]
[1748841685404,0.88333359,104790.0,104780.0,0.0199282]
[1748841685817,0.88333359,104790.0,104780.0,0.0229819]
[1748841686054,0.88333359,104790.0,104780.0,0.02298272]
[1748841686263,0.88333359,104790.0,104780.0,0.02298359]
[1748841686475,0.97273359,104790.0,104780.0,0.02298359]
[1748841687742,0.97273359,104790.0,104780.0,0.02298673]
[1748841688576,0.97273359,104790.0,104780.0,0.0140521]
[1748841688773,0.97273359,104790.0,104780.0,0.01993303]
[1748841689173,0.97273359,104790.0,104780.0,0.0109984]
[1748841689418,0.97273359,104790.0,104780.0,0.01993372]
[1748841689624,0.97273359,104790.0,104780.0,0.02298743]
[1748841690482,1.00283359,104790.0,104780.0,0.02298743]
[1748841690689,1.00283359,104790.0,104780.0,0.02298818]
[1748841690902,1.00283359,104790.0,104780.0,0.02298822]
[1748841691762,1.00283359,104790.0,104780.0,0.01405211]
[1748841691971,1.00283359,104790.0,104780.0,0.01993451]
[1748841692149,1.00283359,104790.0,104780.0,0.02298822]
[1748841692571,1.00283359,104790.0,104780.0,0.01405211]
[1748841692779,1.00283359,104790.0,104780.0,0.01993449]
[1748841693000,1.00283359,104790.0,104780.0,0.05173418]
[1748841693001,0.97261359,104790.0,104780.0,0.05173418]
[1748841693211,0.97261359,104790.0,104780.0,0.05478763]
[1748841693415,0.97261359,104790.0,104780.0,0.05478762]
[1748841693672,0.97261359,104790.0,104780.0,0.05478759]
[1748841693890,0.97261359,104790.0,104780.0,0.054795]
[1748841694098,0.97261359,104790.0,104780.0,0.04585211]
[1748841694273,0.97261359,104790.0,104780.0,0.05479501]
[1748841694479,0.97261359,104790.0,104780.0,0.05479459]
[1748841694709,0.97261359,104790.0,104780.0,0.04585211]
[1748841694893,0.97261359,104790.0,104780.0,0.05479459]
[1748841695226,0.97261359,104790.0,104780.0,0.04585211]
[1748841695533,0.97261359,104790.0,104780.0,0.05479457]
[1748841695940,0.97261359,104790.0,104780.0,0.05479458]
[1748841697075,0.97261359,104790.0,104780.0,0.05479441]
[1748841697530,0.59153359,104790.0,104780.0,0.05479441]
[1748841697730,0.97261359,104790.0,104780.0,0.05479436]
[1748841697961,0.97261359,104790.0,104780.0,0.05479433]
[1748841698139,0.97261359,104790.0,104780.0,0.05479434]
[1748841698335,0.97261359,104790.0,104780.0,0.05479418]
[1748841699738,0.47099,104790.0,104780.0,0.35106822]
[1748841699966,0.38159,104790.0,104780.0,0.69916692]
[1748841700169,0.38159,104790.0,104780.0,0.69916442]
[1748841700415,0.38159,104790.0,104780.0,0.69916417]
[1748841700767,0.38159,104790.0,104780.0,0.37870702]
[1748841701380,0.38159,104790.0,104780.0,0.37870164]
[1748841701782,0.39113207,104790.0,104780.0,0.3787016]
[1748841701965,0.38159,104790.0,104780.0,0.37869907]
[1748841702166,0.38159,104790.0,104780.0,0.39656033]
[1748841702390,0.38159,104790.0,104780.0,0.36976522]
[1748841702625,0.38159,104790.0,104780.0,0.39655711]
[1748841702942,0.38159,104790.0,104780.0,0.3965571]
[1748841703354,0.38159,104790.0,104780.0,0.39655705]
[1748841703781,0.38159,104790.0,104780.0,0.36976522]
[1748841703980,0.39113225,104790.0,104780.0,0.39655088]
[1748841704159,0.39113216,104790.0,104780.0,0.39655088]
[1748841705370,0.39113216,104790.0,104780.0,0.39654589]
[1748841706053,0.39113216,104790.0,104780.0,0.36488206]
[1748841706410,0.39113216,104790.0,104780.0,0.3916563]
[1748841706630,0.39113216,104790.0,104780.0,0.39165633]
[1748841707121,0.4006745,104790.0,104780.0,0.39165633]
[1748841707454,0.39113216,104790.0,104780.0,0.38272899]
[1748841707667,0.39113216,104790.0,104780.0,0.39165405]
[1748841707859,0.39113216,104790.0,104780.0,0.39165404]
[1748841708375,0.39113216,104790.0,104780.0,0.3916535]
[1748841708597,0.39113216,104790.0,104780.0,0.3916524]
[1748841708703,0.39113216,104790.0,104780.0,0.37380338]
[1748841708934,0.40067441,104790.0,104780.0,0.3916524]
[1748841709137,0.41021685,104790.0,104780.0,0.39165243]
[1748841709339,0.41021685,104790.0,104780.0,0.37380318]
[1748841709544,0.41021685,104790.0,104780.0,0.3827275]
[1748841709742,0.41021685,104790.0,104780.0,0.39165181]
[1748841709979,0.41021685,104790.0,104780.0,0.3916518]
[1748841710218,0.41975947,104790.0,104780.0,0.3916515]
[1748841710662,0.41975947,104790.0,104780.0,0.38956863]
[1748841710896,0.41975947,104790.0,104780.0,0.38956873]
[1748841711103,0.41975947,104790.0,104780.0,0.39165075]
[1748841711503,0.42930218,104790.0,104780.0,0.3916508]
[1748841711924,0.60107567,104790.0,104780.0,0.38210773]
[1748841712125,0.60107567,104790.0,104780.0,0.38210789]
[1748841712326,0.60107567,104790.0,104780.0,0.15654471]
[1748841712327,0.58199061,104790.0,104780.0,0.15654471]
[1748841712554,0.58199061,104790.0,104780.0,0.1498886]
[1748841712767,0.58199061,104790.0,104780.0,0.12311542]
[1748841712885,0.58199061,104790.0,104780.0,0.12249603]
[1748841713249,0.58199061,104790.0,104780.0,0.11357162]
[1748841713669,0.58199061,104790.0,104780.0,0.14034489]
[1748841713893,0.58199061,104790.0,104780.0,0.11357162]
[1748841714095,0.58199061,104790.0,104780.0,0.12311542]
[1748841714304,0.58199061,104790.0,104780.0,0.35030901]
[1748841714521,0.58199061,104790.0,104780.0,0.37188459]
[1748841714727,0.58199061,104790.0,104780.0,0.35403525]
[1748841714929,0.58199061,104790.0,104780.0,0.38081111]
[1748841715137,0.58199061,104790.0,104780.0,0.35403556]
[1748841715360,0.58199061,104790.0,104780.0,0.3903549]
[1748841716885,0.58199061,104790.0,104780.0,0.36357909]
[1748841717103,0.58199061,104790.0,104780.0,0.38143197]
[1748841717309,0.58199061,104790.0,104780.0,0.39035841]
[1748841717514,0.58199061,104790.0,104780.0,0.38204888]
[1748841717755,0.58199061,104790.0,104780.0,0.3999026]
[1748841718277,0.40067515,104790.0,104780.0,0.40944585]
[1748841718488,0.40067515,104790.0,104780.0,0.40944618]
[1748841718694,0.40067515,104790.0,104780.0,0.40051967]
[1748841718921,0.40067515,104790.0,104780.0,0.40944698]
[1748841719139,0.40067515,104790.0,104780.0,0.38266505]
[1748841719365,0.40067515,104790.0,104780.0,0.38266598]
[1748841719826,0.40067515,104790.0,104780.0,0.39159385]
[1748841720035,0.40067515,104790.0,104780.0,0.38266598]
[1748841720444,0.41021795,104790.0,104780.0,0.37312282]
[1748841720653,0.40067515,104790.0,104780.0,0.39159465]
[1748841720875,0.40067515,104790.0,104780.0,0.40052333]
[1748841721081,0.40067515,104790.0,104780.0,0.38266598]
[1748841721525,0.40067515,104790.0,104780.0,0.4005233]
[1748841721740,0.40067515,104790.0,104780.0,0.39159463]
[1748841721977,0.40067515,104790.0,104780.0,0.38266598]
[1748841722193,0.41021795,104790.0,104780.0,0.39159525]
[1748841722415,0.41021795,104790.0,104780.0,0.3826666]
[1748841722636,0.41021795,104790.0,104780.0,0.35782344]
[1748841722869,0.41021795,104790.0,104780.0,0.32353684]
[1748841723076,0.63247585,104790.0,104780.0,0.31338097]
[1748841723288,0.63247585,104790.0,104780.0,0.31399295]
[1748841723537,0.61607585,104790.0,104780.0,0.32292432]
[1748841723742,0.60107585,104790.0,104780.0,0.34201119]
[1748841723948,0.60107585,104790.0,104780.0,0.35094335]
[1748841724245,0.89367585,104790.0,104780.0,0.35094335]
[1748841724459,0.70281795,104790.0,104780.0,0.35094561]
[1748841724666,0.70281795,104790.0,104780.0,0.33307982]
[1748841724885,0.39113216,104790.0,104780.0,0.3727127]
[1748841725100,0.41975937,104790.0,104780.0,0.38225586]
[1748841725315,0.41021675,104790.0,104780.0,0.41798709]
[1748841725530,0.41021675,104790.0,104780.0,0.40905427]
[1748841725735,0.41975937,104790.0,104780.0,0.41798707]
[1748841726156,0.41975937,104790.0,104780.0,0.39118867]
[1748841726320,0.41975937,104790.0,104780.0,0.41799227]
[1748841726731,0.39113216,104790.0,104780.0,0.41799229]
[1748841726930,0.38159,104790.0,104780.0,0.41799229]
[1748841727149,0.38159,104790.0,104780.0,0.42287545]
[1748841727297,0.38159,104790.0,104780.0,0.41920807]
[1748841727521,0.38159,104790.0,104780.0,0.41027353]
[1748841727731,0.38159,104790.0,104780.0,0.4192063]
[1748841727943,0.38159,104790.0,104780.0,0.41920624]
[1748841728331,0.38159,104790.0,104780.0,0.41921405]
[1748841729164,0.38159,104790.0,104780.0,0.4013409]
[1748841729386,0.38159,104790.0,104780.0,0.41921381]
[1748841730282,0.38159,104790.0,104780.0,0.41921879]
[1748841730481,0.38159,104790.0,104780.0,0.38935105]
[1748841730694,0.38159,104790.0,104780.0,0.41921858]
[1748841730964,0.38159,104790.0,104780.0,0.41028041]
[1748841731164,0.38159,104790.0,104780.0,0.71177828]
[1748841731375,0.38159,104790.0,104780.0,0.71177786]
[1748841731994,0.38159,104790.0,104780.0,1.04677586]
[1748841732215,0.38159,104790.0,104780.0,1.01507908]
[1748841732444,0.01908268,104800.0,104790.0,0.25406738]
[1748841732670,0.30942905,104810.0,104800.0,0.2120051]
[1748841732891,0.30942905,104810.0,104800.0,0.31091259]
[1748841733114,0.30942905,104810.0,104800.0,0.30137097]
[1748841733331,0.32452905,104810.0,104800.0,0.32878712]
[1748841733545,0.32452905,104810.0,104800.0,0.32878673]
[1748841733766,0.31498871,104810.0,104800.0,0.31924502]
[1748841733985,0.31160721,104810.0,104800.0,0.11886344]
[1748841734228,0.31160721,104810.0,104800.0,0.00513509]
[1748841734440,0.31160721,104810.0,104800.0,0.02300592]
[1748841734661,0.31360721,104810.0,104800.0,0.02300592]
[1748841735124,0.31360721,104810.0,104800.0,0.00513509]
[1748841735357,0.31460721,104810.0,104800.0,0.02300504]
[1748841736132,0.31460721,104810.0,104800.0,0.03193802]
[1748841736360,0.31460721,104810.0,104800.0,0.00513509]
[1748841736571,0.31460721,104810.0,104800.0,0.02888522]
[1748841736829,0.31460721,104810.0,104800.0,0.03193842]
[1748841737046,0.31460721,104810.0,104800.0,0.02300319]
[1748841737283,0.31460721,104810.0,104800.0,0.03193835]
[1748841737517,0.22476721,104810.0,104800.0,0.12779265]
[1748841737730,0.60724721,104810.0,104800.0,0.12779208]
[1748841737968,0.60724721,104810.0,104800.0,0.12779206]
[1748841738172,0.60724721,104810.0,104800.0,0.10098939]
[1748841738860,0.60724721,104810.0,104800.0,0.1099232]
[1748841739111,0.60724721,104810.0,104800.0,0.12473765]
[1748841739377,0.60724721,104810.0,104800.0,0.12779084]
[1748841739609,0.60724721,104810.0,104800.0,0.12779051]
[1748841740085,0.60724721,104810.0,104800.0,0.12779049]
[1748841740318,0.60724721,104810.0,104800.0,0.0319365]
[1748841740530,0.60724721,104810.0,104800.0,0.03193685]
[1748841740749,0.60724721,104810.0,104800.0,0.03193705]
[1748841740977,0.60724721,104810.0,104800.0,0.03193816]
[1748841741398,0.60724721,104810.0,104800.0,0.03193702]
[1748841741611,0.60724721,104810.0,104800.0,0.02300304]
[1748841741828,0.60724721,104810.0,104800.0,0.00513508]
[1748841742041,0.60724721,104810.0,104800.0,0.02888384]
[1748841742248,0.60724721,104810.0,104800.0,0.03193702]
[1748841743350,0.60724721,104810.0,104800.0,0.03193813]
[1748841743552,0.60724721,104810.0,104800.0,0.03193823]
[1748841744241,0.60724721,104810.0,104800.0,0.03193925]
[1748841744664,0.60724721,104810.0,104800.0,0.03193967]
[1748841746590,0.60724721,104810.0,104800.0,0.03194077]
[1748841746979,0.60724721,104810.0,104800.0,0.0319415]
[1748841747404,0.60724721,104810.0,104800.0,0.03194241]
[1748841747820,0.60724721,104810.0,104800.0,0.03194295]
[1748841748170,0.60724721,104810.0,104800.0,0.00513518]
[1748841748363,0.60724721,104810.0,104800.0,0.02889185]
[1748841748552,0.60724721,104810.0,104800.0,0.03194513]
[1748841748944,0.60724721,104810.0,104800.0,0.01407184]
[1748841749131,0.60724721,104810.0,104800.0,0.02889188]
[1748841749286,0.60724721,104810.0,104800.0,0.03194516]
[1748841749697,0.60724721,104810.0,104800.0,0.03194577]
[1748841749912,0.60724721,104810.0,104800.0,0.02300891]
[1748841750113,0.60724721,104810.0,104800.0,0.01407204]
[1748841750323,0.60724721,104810.0,104800.0,0.02889249]
[1748841750525,0.60724721,104810.0,104800.0,0.03194577]
[1748841751066,0.60724721,104810.0,104800.0,0.03194616]
[1748841751684,0.60724721,104810.0,104800.0,0.02300967]
[1748841751882,0.60724721,104810.0,104800.0,0.01407242]
[1748841752106,0.60724721,104810.0,104800.0,0.02889363]
[1748841752312,0.60724721,104810.0,104800.0,0.03194691]
[1748841752452,0.60724721,104810.0,104800.0,0.00513518]
[1748841752662,0.60724721,104810.0,104800.0,0.02889363]
[1748841752840,0.60724721,104810.0,104800.0,0.03194691]
[1748841753663,0.60724721,104810.0,104800.0,0.03194742]
[1748841753880,0.60724721,104810.0,104800.0,0.0319506]
[1748841754083,0.60724721,104810.0,104800.0,0.02301213]
[1748841754305,0.60724721,104810.0,104800.0,0.0319506]
[1748841755160,0.60724721,104810.0,104800.0,0.01407365]
[1748841755352,0.60724721,104810.0,104800.0,0.02889753]
[1748841755570,0.60724721,104810.0,104800.0,0.03195092]
[1748841755771,0.60724721,104810.0,104800.0,0.01407376]
[1748841755991,0.60724721,104810.0,104800.0,0.01995906]
[1748841756191,0.60724721,104810.0,104800.0,0.03195123]
[1748841757044,0.60724721,104810.0,104800.0,0.01407386]
[1748841757194,0.60724721,104810.0,104800.0,0.02889795]
[1748841757396,0.31460721,104810.0,104800.0,0.03195123]
[1748841757603,0.60652721,104810.0,104800.0,0.03195123]
[1748841757902,0.60652721,104810.0,104800.0,0.00513518]
[1748841758109,0.60652721,104810.0,104800.0,0.02889749]
[1748841758330,0.60652721,104810.0,104800.0,0.03195077]
[1748841758733,0.60652721,104810.0,104800.0,0.03195113]
[1748841758912,0.60652721,104810.0,104800.0,0.03195084]
[1748841759122,0.60652721,104810.0,104800.0,0.01407368]
[1748841759327,0.60652721,104810.0,104800.0,0.02889744]
[1748841759532,0.60652721,104810.0,104800.0,0.03195072]
[1748841759948,0.60652721,104810.0,104800.0,0.03195026]
[1748841760999,0.60652721,104810.0,104800.0,0.0319502]
[1748841761423,0.59082721,104810.0,104800.0,0.0319502]
[1748841761658,0.59082721,104810.0,104800.0,0.00513518]
[1748841761865,0.59082721,104810.0,104800.0,0.02889644]
[1748841762032,0.59082721,104810.0,104800.0,0.03194972]
[1748841762473,0.59082721,104810.0,104800.0,0.03194987]
[1748841762880,0.57572721,104810.0,104800.0,0.03195018]
[1748841763244,0.57572721,104810.0,104800.0,0.00513518]
[1748841763443,0.57572721,104810.0,104800.0,0.02301185]
[1748841763647,0.57572721,104810.0,104800.0,0.01407351]
[1748841763851,0.57572721,104810.0,104800.0,0.03195447]
[1748841764403,0.57572721,104810.0,104800.0,0.03195469]
[1748841765056,0.57572721,104810.0,104800.0,0.03195716]
[1748841765266,0.57572721,104810.0,104800.0,0.03195987]
[1748841765502,0.57572721,104810.0,104800.0,0.03195988]
[1748841765716,0.57572721,104810.0,104800.0,0.03196509]
[1748841766143,0.57572721,104810.0,104800.0,0.00513519]
[1748841766346,0.57572721,104810.0,104800.0,0.03196509]
[1748841766972,0.57572721,104810.0,104800.0,0.02302179]
[1748841767186,0.57572721,104810.0,104800.0,0.03196509]
[1748841767800,0.57572721,104810.0,104800.0,0.02302179]
[1748841768022,0.57572721,104810.0,104800.0,0.03196509]
[1748841768908,0.59162721,104810.0,104800.0,0.03196509]
[1748841769532,0.59162721,104810.0,104800.0,0.01408014]
[1748841769782,0.59162721,104810.0,104800.0,0.0230251]
[1748841769998,0.59162721,104810.0,104800.0,0.01408014]
[1748841770207,0.59162721,104810.0,104800.0,0.00513519]
[1748841770412,0.59162721,104810.0,104800.0,0.03197005]
[1748841770823,0.57572721,104810.0,104800.0,0.0230251]
[1748841771032,0.57572721,104810.0,104800.0,0.03197005]
[1748841771463,0.57572721,104810.0,104800.0,0.03197004]
[1748841771671,0.57572721,104810.0,104800.0,0.01408014]
[1748841771880,0.57572721,104810.0,104800.0,0.03197004]
[1748841772304,0.60772721,104810.0,104800.0,0.03197004]
[1748841772726,0.60772721,104810.0,104800.0,0.03197005]
[1748841773153,0.60772721,104810.0,104800.0,0.0319701]
[1748841773365,0.22596721,104810.0,104800.0,0.0319701]
[1748841773576,0.2035081,104810.0,104800.0,0.04151199]
[1748841773798,0.2035081,104810.0,104800.0,0.0551242]
[1748841774217,0.2035081,104810.0,104800.0,0.03723519]
[1748841774417,0.2035081,104810.0,104800.0,0.05511958]
[1748841774829,0.2035081,104810.0,104800.0,0.03723519]
[1748841775032,0.2035081,104810.0,104800.0,0.05511696]
[1748841775412,0.2035081,104810.0,104800.0,0.05511693]
[1748841775748,0.2035081,104810.0,104800.0,0.15097126]
[1748841775957,0.4962281,104810.0,104800.0,0.15097126]
[1748841776160,0.4962281,104810.0,104800.0,0.15096975]
[1748841776789,0.4962281,104810.0,104800.0,0.15096954]
[1748841777200,0.4962281,104810.0,104800.0,0.15096953]
[1748841778051,0.4962281,104810.0,104800.0,0.13308931]
[1748841778468,0.4962281,104810.0,104800.0,0.15096779]
[1748841780006,0.4962281,104810.0,104800.0,0.15096631]
[1748841780634,0.4962281,104810.0,104800.0,0.13308931]
[1748841780838,0.4962281,104810.0,104800.0,0.15096631]
[1748841781252,0.2035081,104810.0,104800.0,0.15096631]
[1748841781459,0.4961881,104810.0,104800.0,0.15096631]
[1748841781660,0.4961881,104810.0,104800.0,0.15096533]
[1748841782084,0.4961881,104810.0,104800.0,0.15096517]
[1748841782287,0.2035081,104810.0,104800.0,0.35134666]
[1748841782714,0.2035081,104810.0,104800.0,0.36088837]
[1748841782715,0.00314573,104810.0,104800.0,0.36088837]
[1748841782931,0.00314573,104810.0,104800.0,0.70413737]
[1748841783141,0.01268616,104810.0,104800.0,0.68626149]
[1748841783354,0.02222677,104810.0,104800.0,0.70413476]
[1748841783561,0.02222677,104810.0,104800.0,0.70413451]
[1748841783975,0.02222677,104810.0,104800.0,0.70413434]
[1748841784190,0.02222677,104810.0,104800.0,0.68626149]
[1748841784423,0.02022677,104810.0,104800.0,0.70412768]
[1748841784632,0.01922677,104810.0,104800.0,0.70412768]
[1748841785387,0.01922668,104810.0,104800.0,0.38363252]
[1748841785832,0.01922668,104810.0,104800.0,0.38362904]
[1748841786059,0.01922668,104810.0,104800.0,0.38362876]
[1748841786977,0.00968607,104810.0,104800.0,0.38362876]
[1748841787210,0.01922659,104810.0,104800.0,0.38362876]
[1748841787428,0.01922659,104810.0,104800.0,0.38362459]
[1748841787650,0.01922659,104810.0,104800.0,0.36576313]
[1748841787851,0.01922659,104810.0,104800.0,0.38362459]
[1748841788476,0.01922659,104810.0,104800.0,0.36576313]
[1748841788685,0.01922659,104810.0,104800.0,0.38362144]
[1748841788904,0.01922659,104810.0,104800.0,0.3836194]
[1748841789084,0.01922659,104810.0,104800.0,0.39322625]
[1748841789300,0.00014573,104810.0,104800.0,0.39322625]
[1748841789517,0.00014573,104810.0,104800.0,0.71849208]
[1748841789726,0.00014573,104810.0,104800.0,0.71482409]
[1748841789931,0.00014573,104810.0,104800.0,0.39445263]
[1748841790166,0.00014573,104810.0,104800.0,0.37659611]
[1748841790370,0.00968616,104810.0,104800.0,0.3944453]
[1748841790568,0.00968607,104810.0,104800.0,0.3944453]
[1748841790771,0.00968598,104810.0,104800.0,0.3944453]
[1748841791000,0.00014573,104810.0,104800.0,0.39444535]
[1748841791201,0.00968607,104810.0,104800.0,0.39810988]
[1748841791408,0.00685514,104810.0,104800.0,0.69054988]
[1748841791610,0.00685514,104810.0,104800.0,0.69054544]
[1748841792356,0.02861902,104820.0,104810.0,0.2635662]
[1748841792539,0.22896228,104820.0,104810.0,0.37077732]
[1748841792993,0.22896228,104820.0,104810.0,0.37077409]
[1748841793618,0.20986349,104830.0,104820.0,0.24446486]
[1748841793823,0.21940238,104830.0,104820.0,0.36121337]
[1748841794047,0.21940238,104830.0,104820.0,0.36120727]
[1748841794236,0.21940238,104830.0,104820.0,0.34337188]
[1748841794444,0.21940238,104830.0,104820.0,0.36120729]
[1748841794752,0.22040238,104830.0,104820.0,0.34337188]
[1748841794958,0.22040238,104830.0,104820.0,0.36120729]
[1748841795164,0.22040238,104830.0,104820.0,0.36120749]
[1748841795603,0.22040238,104830.0,104820.0,0.3612036]
[1748841796438,0.21086349,104830.0,104820.0,0.3612036]
[1748841796658,0.21286349,104830.0,104820.0,0.3612036]
[1748841797061,0.21286349,104830.0,104820.0,0.36120071]
[1748841797496,0.20332433,104830.0,104820.0,0.35166082]
[1748841797933,0.20332433,104830.0,104820.0,0.35166134]
[1748841798333,0.20332433,104830.0,104820.0,0.33383199]
[1748841798545,0.20332433,104830.0,104820.0,0.35166134]
[1748841798972,0.20332433,104830.0,104820.0,0.36120123]
[1748841799405,0.20332433,104830.0,104820.0,0.34212122]
[1748841799609,0.19378508,104830.0,104820.0,0.13348859]
[1748841799814,0.19378508,104830.0,104820.0,0.15131671]
[1748841800022,0.19378508,104830.0,104820.0,0.14302875]
[1748841800300,0.19378508,104830.0,104820.0,0.16085687]
[1748841801205,0.19378508,104830.0,104820.0,0.16085672]
[1748841801431,0.19378508,104830.0,104820.0,0.14302875]